fUSD/lending_fUSD_20240712
["ID","MTS","AMOUNT","RATE_DAILY","PERIOD"]
[331853698,1720794665150,-839.78,0.00013917,2]
[331853699,1720794665160,-504.32,0.00013917,2]
[331853700,1720794665170,-500.0,0.00013917,2]
[331853701,1720794665180,-500.0,0.00013917,2]
[331853702,1720794665194,-1168.03,0.00013917,2]
[331853703,1720794665206,-500.0,0.00013917,2]
[331853704,1720794665215,-500.0,0.00013917,2]
[331853705,1720794665225,-1010.06,0.00013917,2]
[331853706,1720794665235,-642.47,0.00013917,2]
[331853707,1720794665244,-748.91,0.00013917,2]
[331853708,1720794665254,-551.78,0.00013917,2]
[331853709,1720794665263,-523.44,0.00013917,2]
[331853710,1720794665273,-197.98890182,0.00013917,2]
[331853711,1720794665282,-500.0,0.00013917,2]
[331853712,1720794665291,-500.0,0.00013917,2]
[331853713,1720794665301,-822.71,0.00013917,2]
[331853714,1720794665311,-500.0,0.00013917,2]
[331853715,1720794665320,-500.0,0.00013917,2]
[331853716,1720794665330,-697.55,0.00013917,2]
[331853717,1720794665339,-500.0,0.00013917,2]
[331853718,1720794665350,-500.0,0.00013917,2]
[331853719,1720794665359,-500.0,0.00013917,2]
[331853720,1720794665369,-500.0,0.00013917,2]
[331853721,1720794665378,-712.55,0.00013917,2]
[331853722,1720794665388,-500.0,0.00013917,2]
[331853723,1720794665397,-1375.16,0.00013917,2]
[331853724,1720794665406,-500.0,0.00013917,2]
[331853725,1720794665416,-1385.78,0.00013917,2]
[331853726,1720794665427,-894.92,0.00013917,2]
[331853727,1720794665437,-1435.7,0.00013917,2]
[331853728,1720794665451,-500.0,0.00013917,2]
[331853729,1720794665460,-500.0,0.00013917,2]
[331853730,1720794665470,-500.0,0.00013917,2]
[331853731,1720794665479,-500.0,0.00013917,2]
[331853732,1720794665488,-768.75,0.00013917,2]
[331853733,1720794665498,-472.51500763,0.00013917,2]
[331853734,1720794665508,-716.79,0.00013917,2]
[331853735,1720794665517,-1100.08,0.00013917,2]
[331853736,1720794665527,-630.92,0.00013917,2]
[331853737,1720794665537,-675.75,0.00013917,2]
[331853738,1720794665547,-500.0,0.00013917,2]
[331853739,1720794665557,-500.0,0.00013917,2]
[331853740,1720794665567,-566.06,0.00013917,2]
[331853741,1720794665577,-1310.79,0.00013917,2]
[331853742,1720794665587,-500.0,0.00013917,2]
[331853743,1720794665597,-1202.91,0.00013917,2]
[331853744,1720794665606,-500.0,0.00013917,2]
[331853745,1720794665617,-749.37,0.00013917,2]
[331853746,1720794665627,-511.15,0.00013917,2]
[331853747,1720794665636,-589.09,0.00013917,2]
[331853748,1720794665645,-500.0,0.00013917,2]
[331853749,1720794665655,-2219.16,0.00013917,2]
[331853750,1720794665664,-1072.56,0.00013917,2]
[331853751,1720794665673,-500.0,0.00013917,2]
[331853752,1720794665683,-500.0,0.00013917,2]
[331853753,1720794665695,-6883.09,0.00013917,2]
[331853754,1720794665704,-500.0,0.00013917,2]
[331853755,1720794665713,-500.0,0.00013917,2]
[331853756,1720794665723,-500.0,0.00013917,2]
[331853757,1720794665733,-1509.04,0.00013917,2]
[331853758,1720794665743,-1321.77,0.00013917,2]
[331853759,1720794665753,-636.44,0.00013917,2]
[331853760,1720794665762,-500.0,0.00013917,2]
[331853761,1720794665772,-500.0,0.00013917,2]
[331853762,1720794665781,-500.0,0.00013917,2]
[331853763,1720794665791,-500.0,0.00013917,2]
[331853764,1720794665800,-500.0,0.00013917,2]
[331853765,1720794665809,-500.0,0.00013917,2]
[331853766,1720794665819,-500.0,0.00013917,2]
[331853767,1720794665829,-183.608263,0.00013937,2]
[331853768,1720794665839,-170.804265,0.00013937,2]
[331853769,1720794665848,-181.575577,0.00013937,2]
[331853770,1720794665858,-158.180681,0.00013937,2]
[331853771,1720794665869,-38434.57435499,0.00013943,2]
[331853772,1720794665879,-85144.39377661,0.00013943,2]
[331853773,1720794665888,-200.0,0.00013946,2]
[331853774,1720794665897,-200.0,0.00013946,2]
[331853775,1720794665907,-2000.0,0.00013946,2]
[331853776,1720794665917,-200.0,0.00013946,2]
[331853777,1720794665927,-200.0,0.00013946,2]
[331853778,1720794665938,-500.0,0.00013971,2]
[331853779,1720794665951,-640.54362876,0.00013971,2]
[331853780,1720794665961,-500.0,0.00013971,2]
[331853781,1720794665971,-531.42,0.00013971,2]
[331853782,1720794665980,-443.21223101,0.00013971,2]
[331853783,1720794665990,-588.13,0.00013971,2]
[331853784,1720794665999,-500.0,0.00013971,2]
[331853785,1720794666009,-500.0,0.00013971,2]
[331853786,1720794666019,-624.05,0.00013971,2]
[331853787,1720794666028,-500.0,0.00013971,2]
[331853788,1720794666038,-500.0,0.00013971,2]
[331853789,1720794666048,-500.0,0.00013971,2]
[331853790,1720794666059,-500.0,0.00013971,2]
[331853791,1720794666070,-500.0,0.00013971,2]
[331853792,1720794666082,-500.0,0.00013971,2]
[331853793,1720794666092,-500.0,0.00013971,2]
[331853794,1720794666102,-500.0,0.00013971,2]
[331853795,1720794666112,-500.0,0.00013971,2]
[331853796,1720794666121,-500.0,0.00013971,2]
[331853797,1720794666130,-500.0,0.00013971,2]
[331853798,1720794666139,-500.0,0.00013971,2]
[331853799,1720794666150,-500.0,0.00013971,2]
[331853800,1720794666160,-634.55,0.00013971,2]
[331853801,1720794666170,-677.95,0.00013971,2]
[331853802,1720794666179,-500.0,0.00013971,2]
[331853803,1720794666190,-500.0,0.00013971,2]
[331853804,1720794666199,-500.0,0.00013971,2]
[331853805,1720794666209,-500.0,0.00013971,2]
[331853806,1720794666218,-500.0,0.00013971,2]
[331853807,1720794666228,-237.03009424,0.00013971,2]
[331853808,1720794666237,-500.0,0.00013971,2]
[331853809,1720794666247,-500.0,0.00013971,2]
[331853810,1720794666257,-500.0,0.00013971,2]
[331853811,1720794666266,-500.0,0.00013971,2]
[331853812,1720794666275,-500.0,0.00013971,2]
[331853813,1720794666284,-500.0,0.00013971,2]
[331853814,1720794666294,-500.0,0.00013971,2]
[331853815,1720794666303,-500.0,0.00013971,2]
[331853816,1720794666313,-500.0,0.00013971,2]
[331853817,1720794666322,-500.0,0.00013971,2]
[331853818,1720794666333,-500.0,0.00013971,2]
[331853819,1720794666342,-500.0,0.00013971,2]
[331853820,1720794666352,-500.0,0.00013971,2]
[331853821,1720794666362,-586.38,0.00013971,2]
[331853822,1720794666372,-500.0,0.00013971,2]
[331853823,1720794666381,-500.0,0.00013971,2]
[331853824,1720794666390,-403.4615413,0.00013971,2]
[331853825,1720794666399,-500.0,0.00013971,2]
[331853826,1720794666409,-819.14,0.00013971,2]
[331853827,1720794666418,-806.25,0.00013971,2]
[331853828,1720794666427,-500.0,0.00013971,2]
[331853829,1720794666436,-500.0,0.00013971,2]
[331853830,1720794666447,-500.0,0.00013971,2]
[331853831,1720794666457,-500.0,0.00013971,2]
[331853832,1720794666466,-500.0,0.00013971,2]
[331853833,1720794666476,-500.0,0.00013971,2]
[331853834,1720794666485,-566.01228535,0.00013971,2]
[331853835,1720794666495,-500.0,0.00013971,2]
[331853836,1720794666506,-500.0,0.00013971,2]
[331853837,1720794666515,-500.0,0.00013971,2]
[331853838,1720794666524,-500.0,0.00013971,2]
[331853839,1720794666533,-500.0,0.00013971,2]
[331853840,1720794666543,-691.25,0.00013971,2]
[331853841,1720794666552,-710.01,0.00013971,2]
[331853842,1720794666561,-870.72,0.00013971,2]
[331853843,1720794666570,-500.0,0.00013971,2]
[331853844,1720794666580,-500.0,0.00013971,2]
[331853845,1720794666589,-500.0,0.00013971,2]
[331853846,1720794666599,-500.0,0.00013971,2]
[331853847,1720794666608,-500.0,0.00013971,2]
[331853848,1720794666618,-500.0,0.00013971,2]
[331853849,1720794666627,-500.0,0.00013971,2]
[331853850,1720794666637,-500.0,0.00013971,2]
[331853851,1720794666646,-500.0,0.00013971,2]
[331853852,1720794666655,-500.0,0.00013971,2]
[331853853,1720794666665,-500.0,0.00013971,2]
[331853854,1720794666674,-500.0,0.00013971,2]
[331853855,1720794666684,-500.0,0.00013971,2]
[331853856,1720794666696,-500.0,0.00013971,2]
[331853857,1720794666706,-500.0,0.00013971,2]
[331853858,1720794666716,-500.0,0.00013971,2]
[331853859,1720794666725,-500.0,0.00013971,2]
[331853860,1720794666736,-500.0,0.00013971,2]
[331853861,1720794666745,-570.65,0.00013971,2]
[331853862,1720794666754,-582.03,0.00013971,2]
[331853863,1720794666764,-506.37,0.00013971,2]
[331853864,1720794666774,-500.0,0.00013971,2]
[331853865,1720794666784,-500.0,0.00013971,2]
[331853866,1720794666794,-500.0,0.00013971,2]
[331853867,1720794666804,-500.0,0.00013971,2]
[331853868,1720794666813,-500.0,0.00013971,2]
[331853869,1720794666822,-500.0,0.00013971,2]
[331853870,1720794666832,-500.0,0.00013971,2]
[331853871,1720794666841,-500.0,0.00013971,2]
[331853872,1720794666851,-500.0,0.00013971,2]
[331853873,1720794666860,-500.0,0.00013971,2]
[331853874,1720794666870,-500.0,0.00013971,2]
[331853875,1720794666880,-500.0,0.00013971,2]
[331853876,1720794666891,-500.0,0.00013971,2]
[331853877,1720794666900,-646.31,0.00013971,2]
[331853878,1720794666910,-500.0,0.00013971,2]
[331853879,1720794666920,-500.0,0.00013971,2]
[331853880,1720794666930,-500.0,0.00013971,2]
[331853881,1720794666942,-500.0,0.00013971,2]
[331853882,1720794666951,-500.0,0.00013971,2]
[331853883,1720794666961,-500.0,0.00013971,2]
[331853884,1720794666972,-559.09,0.00013971,2]
[331853885,1720794666982,-500.0,0.00013971,2]
[331853886,1720794666991,-500.0,0.00013971,2]
[331853887,1720794667000,-577.19,0.00013971,2]
[331853888,1720794667010,-560.07,0.00013971,2]
[331853889,1720794667019,-1091.77,0.00013971,2]
[331853890,1720794667029,-500.0,0.00013971,2]
[331853891,1720794667039,-500.0,0.00013971,2]
[331853892,1720794667048,-500.0,0.00013971,2]
[331853893,1720794667058,-500.0,0.00013971,2]
[331853894,1720794667067,-500.0,0.00013971,2]
[331853895,1720794667080,-500.0,0.00013971,2]
[331853896,1720794667089,-500.0,0.00013971,2]
[331853897,1720794667098,-500.0,0.00013971,2]
[331853898,1720794667108,-500.0,0.00013971,2]
[331853899,1720794667118,-500.0,0.00013971,2]
[331853900,1720794667127,-500.0,0.00013971,2]
[331853901,1720794667137,-500.0,0.00013971,2]
[331853902,1720794667149,-558.7,0.00013971,2]
[331853903,1720794667159,-500.0,0.00013971,2]
[331853904,1720794667168,-500.0,0.00013971,2]
[331853905,1720794667178,-500.0,0.00013971,2]
[331853906,1720794667187,-500.0,0.00013971,2]
[331853907,1720794667198,-500.0,0.00013971,2]
[331853908,1720794667208,-500.0,0.00013971,2]
[331853909,1720794667217,-500.0,0.00013971,2]
[331853910,1720794667226,-500.0,0.00013971,2]
[331853911,1720794667235,-500.0,0.00013971,2]
[331853912,1720794667245,-500.0,0.00013971,2]
[331853913,1720794667255,-500.0,0.00013971,2]
[331853914,1720794667264,-500.0,0.00013971,2]
[331853915,1720794667273,-500.0,0.00013971,2]
[331853916,1720794667409,-500.0,0.00013971,2]
[331853917,1720794667419,-566.18,0.00013971,2]
[331853918,1720794667428,-500.0,0.00013971,2]
[331853919,1720794667438,-500.0,0.00013971,2]
[331853920,1720794667448,-500.0,0.00013971,2]
[331853921,1720794667458,-500.0,0.00013971,2]
[331853922,1720794667467,-557.9,0.00013971,2]
[331853923,1720794667476,-500.0,0.00013971,2]
[331853924,1720794667485,-500.0,0.00013971,2]
[331853925,1720794667495,-500.0,0.00013972,2]
[331853926,1720794667504,-524.11,0.00013972,2]
[331853927,1720794667513,-500.0,0.00013972,2]
[331853928,1720794667523,-500.0,0.00013972,2]
[331853929,1720794667533,-500.0,0.00013972,2]
[331853930,1720794667542,-798.11,0.00013972,2]
[331853931,1720794667551,-500.0,0.00013972,2]
[331853932,1720794667560,-543.87,0.00013972,2]
[331853933,1720794667570,-500.0,0.00013972,2]
[331853934,1720794667579,-714.43,0.00013972,2]
[331853935,1720794667588,-717.24,0.00013972,2]
[331853936,1720794667598,-500.0,0.00013972,2]
[331853937,1720794667607,-808.16,0.00013972,2]
[331853938,1720794667616,-574.63,0.00013972,2]
[331853939,1720794667626,-625.21,0.00013972,2]
[331853940,1720794667635,-945.63,0.00013972,2]
[331853941,1720794667644,-500.0,0.00013972,2]
[331853942,1720794667653,-500.0,0.00013972,2]
[331853943,1720794667662,-267.97224629,0.00013972,2]
[331853944,1720794667671,-500.0,0.00013972,2]
[331853945,1720794667681,-500.0,0.00013972,2]
[331853946,1720794667692,-500.0,0.00013972,2]
[331853947,1720794667702,-677.22,0.00013972,2]
[331853948,1720794667711,-338.48162936,0.00013972,2]
[331853949,1720794667720,-500.0,0.00013972,2]
[331853950,1720794667730,-500.0,0.00013972,2]
[331853951,1720794667739,-567.5,0.00013972,2]
[331853952,1720794667748,-799.61,0.00013972,2]
[331853953,1720794667757,-500.0,0.00013972,2]
[331853954,1720794667767,-500.0,0.00013972,2]
[331853955,1720794667776,-500.0,0.00013972,2]
[331853956,1720794667785,-500.0,0.00013972,2]
[331853957,1720794667795,-500.0,0.00013972,2]
[331853958,1720794667804,-743.72,0.00013972,2]
[331853959,1720794667814,-500.0,0.00013972,2]
[331853960,1720794667823,-500.0,0.00013972,2]
[331853961,1720794667832,-500.0,0.00013972,2]
[331853962,1720794667843,-500.0,0.00013972,2]
[331853963,1720794667852,-500.0,0.00013972,2]
[331853964,1720794667862,-500.0,0.00013972,2]
[331853965,1720794667871,-500.0,0.00013972,2]
[331853966,1720794667881,-500.0,0.00013972,2]
[331853967,1720794667890,-608.66,0.00013972,2]
[331853968,1720794667900,-500.0,0.00013972,2]
[331853969,1720794667909,-500.0,0.00013972,2]
[331853970,1720794667919,-785.46,0.00013972,2]
[331853971,1720794667928,-506.96,0.00013972,2]
[331853972,1720794667938,-500.0,0.00013972,2]
[331853973,1720794667950,-523.01,0.00013972,2]
[331853974,1720794667960,-532.23,0.00013972,2]
[331853975,1720794667969,-659.11,0.00013972,2]
[331853976,1720794667978,-500.0,0.00013972,2]
[331853977,1720794667988,-928.6,0.00013972,2]
[331853978,1720794667998,-500.0,0.00013972,2]
[331853979,1720794668007,-500.0,0.00013972,2]
[331853980,1720794668016,-857.04,0.00013972,2]
[331853981,1720794668025,-536.84,0.00013972,2]
[331853982,1720794668035,-1012.71,0.00013972,2]
[331853983,1720794668044,-500.0,0.00013972,2]
[331853984,1720794668053,-500.0,0.00013972,2]
[331853985,1720794668062,-787.1,0.00013972,2]
[331853986,1720794668074,-500.0,0.00013972,2]
[331853987,1720794668084,-500.0,0.00013972,2]
[331853988,1720794668093,-615.96977371,0.00013972,2]
[331853989,1720794668103,-880.19,0.00013972,2]
[331853990,1720794668112,-545.56,0.00013972,2]
[331853991,1720794668121,-500.0,0.00013972,2]
[331853992,1720794668131,-714.66,0.00013972,2]
[331853993,1720794668140,-500.0,0.00013972,2]
[331853994,1720794668150,-500.0,0.00013972,2]
[331853995,1720794668160,-500.0,0.00013972,2]
[331853996,1720794668170,-500.0,0.00013972,2]
[331853997,1720794668182,-500.0,0.00013972,2]
[331853998,1720794668193,-633.29,0.00013972,2]
[331853999,1720794668202,-728.52,0.00013972,2]
[331854000,1720794668211,-500.0,0.00013972,2]
[331854001,1720794668222,-500.0,0.00013972,2]
[331854002,1720794668231,-669.08,0.00013972,2]
[331854003,1720794668241,-500.0,0.00013972,2]
[331854004,1720794668250,-500.0,0.00013972,2]
[331854005,1720794668259,-500.0,0.00013972,2]
[331854006,1720794668268,-500.0,0.00013972,2]
[331854007,1720794668277,-718.04,0.00013972,2]
[331854008,1720794668287,-500.0,0.00013972,2]
[331854009,1720794668296,-500.0,0.00013972,2]
[331854010,1720794668307,-500.0,0.00013972,2]
[331854011,1720794668318,-209.11041642,0.00013972,2]
[331854012,1720794668329,-500.0,0.00013972,2]
[331854013,1720794668339,-500.0,0.00013972,2]
[331854014,1720794668348,-500.0,0.00013972,2]
[331854015,1720794668359,-662.74,0.00013972,2]
[331854016,1720794668368,-500.0,0.00013972,2]
[331854017,1720794668378,-605.31,0.00013972,2]
[331854018,1720794668387,-612.82,0.00013972,2]
[331854019,1720794668396,-500.0,0.00013972,2]
[331854020,1720794668405,-564.04,0.00013972,2]
[331854021,1720794668415,-840.15,0.00013972,2]
[331854022,1720794668424,-500.0,0.00013972,2]
[331854023,1720794668434,-976.09,0.00013972,2]
[331854024,1720794668444,-883.19,0.00013972,2]
[331854025,1720794668454,-500.0,0.00013972,2]
[331854026,1720794668463,-518.94,0.00013972,2]
[331854027,1720794668472,-500.0,0.00013972,2]
[331854028,1720794668482,-500.0,0.00013972,2]
[331854029,1720794668491,-804.2,0.00013972,2]
[331854030,1720794668500,-861.95,0.00013972,2]
[331854031,1720794668509,-642.51,0.00013972,2]
[331854032,1720794668519,-695.85,0.00013972,2]
[331854033,1720794668528,-595.38,0.00013972,2]
[331854034,1720794668538,-947.63,0.00013972,2]
[331854035,1720794668548,-500.0,0.00013972,2]
[331854036,1720794668559,-500.0,0.00013972,2]
[331854037,1720794668568,-500.0,0.00013972,2]
[331854038,1720794668577,-500.0,0.00013972,2]
[331854039,1720794668587,-505.8,0.00013972,2]
[331854040,1720794668596,-594.81,0.00013972,2]
[331854041,1720794668606,-1155.19,0.00013972,2]
[331854042,1720794668616,-544.81,0.00013972,2]
[331854043,1720794668627,-666.89,0.00013972,2]
[331854044,1720794668637,-666.06,0.00013972,2]
[331854045,1720794668648,-500.0,0.00013972,2]
[331854046,1720794668659,-500.0,0.00013972,2]
[331854047,1720794668669,-500.0,0.00013972,2]
[331854048,1720794668678,-500.0,0.00013972,2]
[331854049,1720794668687,-574.05,0.00013972,2]
[331854050,1720794668701,-713.58,0.00013972,2]
[331854051,1720794668711,-523.05,0.00013972,2]
[331854052,1720794668720,-500.0,0.00013972,2]
[331854053,1720794668730,-563.94,0.00013972,2]
[331854054,1720794668739,-500.0,0.00013972,2]
[331854055,1720794668749,-500.0,0.00013972,2]
[331854056,1720794668758,-520.25,0.00013972,2]
[331854057,1720794668768,-712.83,0.00013972,2]
[331854058,1720794668777,-821.92,0.00013972,2]
[331854059,1720794668787,-715.87193583,0.00013972,2]
[331854060,1720794677432,-658.16806417,0.00013972,2]
[331854061,1720794677443,-485.45431408,0.00013972,2]
[331854062,1720794677455,-687.92,0.00013972,2]
[331854063,1720794677465,-883.42,0.00013972,2]
[331854064,1720794677475,-517.54,0.00013972,2]
[331854065,1720794677485,-667.83,0.00013972,2]
[331854066,1720794677495,-500.0,0.00013972,2]
[331854067,1720794677504,-500.0,0.00013972,2]
[331854068,1720794677514,-1125.56,0.00013972,2]
[331854069,1720794677524,-804.76,0.00013972,2]
[331854070,1720794677533,-500.0,0.00013972,2]
[331854071,1720794677543,-500.0,0.00013972,2]
[331854072,1720794677553,-627.46446297,0.00013972,2]
[331854073,1720794677563,-861.99,0.00013972,2]
[331854074,1720794677573,-500.0,0.00013972,2]
[331854075,1720794677583,-500.0,0.00013972,2]
[331854076,1720794677592,-1018.26,0.00013972,2]
[331854077,1720794677602,-298.91977178,0.00013972,2]
[331854078,1720794677611,-833.97,0.00013972,2]
[331854079,1720794677621,-500.0,0.00013972,2]
[331854080,1720794677630,-1246.88,0.00013972,2]
[331854081,1720794677640,-500.0,0.00013972,2]
[331854082,1720794677649,-453.93,0.00013972,2]
[331854083,1720794677659,-500.0,0.00013972,2]
[331854084,1720794677669,-500.0,0.00013972,2]
[331854085,1720794677679,-743.04,0.00013972,2]
[331854086,1720794677688,-500.0,0.00013972,2]
[331854087,1720794677698,-627.82,0.00013972,2]
[331854088,1720794677711,-500.0,0.00013972,2]
[331854089,1720794677720,-500.0,0.00013972,2]
[331854090,1720794677730,-789.19,0.00013972,2]
[331854091,1720794677741,-564.93,0.00013972,2]
[331854092,1720794677751,-500.0,0.00013972,2]
[331854093,1720794677760,-872.58,0.00013972,2]
[331854094,1720794677770,-500.0,0.00013972,2]
[331854095,1720794677780,-500.0,0.00013972,2]
[331854096,1720794677790,-631.32,0.00013972,2]
[331854097,1720794677799,-500.0,0.00013972,2]
[331854098,1720794677809,-500.0,0.00013972,2]
[331854099,1720794677820,-1303.41,0.00013972,2]
[331854100,1720794677831,-987.74,0.00013972,2]
[331854101,1720794677841,-1057.82,0.00013972,2]
[331854102,1720794677851,-500.0,0.00013972,2]
[331854103,1720794677860,-500.0,0.00013972,2]
[331854104,1720794677870,-500.0,0.00013972,2]
[331854105,1720794677881,-500.0,0.00013972,2]
[331854106,1720794677890,-741.61,0.00013972,2]
[331854107,1720794677900,-500.0,0.00013972,2]
[331854108,1720794677909,-759.54,0.00013972,2]
[331854109,1720794677919,-675.64,0.00013972,2]
[331854110,1720794677929,-546.31,0.00013972,2]
[331854111,1720794677939,-1372.87,0.00013972,2]
[331854112,1720794677949,-500.0,0.00013972,2]
[331854113,1720794677960,-500.0,0.00013972,2]
[331854114,1720794677969,-500.0,0.00013972,2]
[331854115,1720794677979,-507.78,0.00013972,2]
[331854116,1720794677989,-851.8,0.00013972,2]
[331854117,1720794677999,-1083.36,0.00013972,2]
[331854118,1720794678009,-500.0,0.00013972,2]
[331854119,1720794678020,-500.0,0.00013972,2]
[331854120,1720794678030,-500.0,0.00013972,2]
[331854121,1720794678040,-519.29,0.00013972,2]
[331854122,1720794678050,-500.0,0.00013972,2]
[331854123,1720794678060,-733.47,0.00013972,2]
[331854124,1720794678073,-500.0,0.00013972,2]
[331854125,1720794678083,-500.0,0.00013972,2]
[331854126,1720794678093,-628.29,0.00013972,2]
[331854127,1720794678103,-500.0,0.00013972,2]
[331854128,1720794678114,-500.0,0.00013972,2]
[331854129,1720794678124,-500.0,0.00013972,2]
[331854130,1720794678209,-500.0,0.00013972,2]
[331854131,1720794678219,-1269.7,0.00013972,2]
[331854132,1720794678229,-500.0,0.00013972,2]
[331854133,1720794678239,-1162.35,0.00013972,2]
[331854134,1720794678248,-500.0,0.00013972,2]
[331854135,1720794678259,-1140.36,0.00013972,2]
[331854136,1720794678269,-500.0,0.00013972,2]
[331854137,1720794678278,-500.0,0.00013972,2]
[331854138,1720794678288,-988.4,0.00013972,2]
[331854139,1720794678298,-1188.5,0.00013972,2]
[331854140,1720794678307,-582.01,0.00013972,2]
[331854141,1720794678316,-742.99,0.00013972,2]
[331854142,1720794678327,-500.0,0.00013972,2]
[331854143,1720794678336,-500.0,0.00013972,2]
[331854144,1720794678346,-500.0,0.00013972,2]
[331854145,1720794678356,-443.02255598,0.00013972,2]
[331854146,1720794678365,-641.89,0.00013972,2]
[331854147,1720794678374,-782.48,0.00013972,2]
[331854148,1720794678384,-500.0,0.00013972,2]
[331854149,1720794678394,-500.0,0.00013972,2]
[331854150,1720794678404,-500.0,0.00013972,2]
[331854151,1720794678413,-648.56,0.00013972,2]
[331854152,1720794678423,-621.66,0.00013972,2]
[331854153,1720794678433,-500.0,0.00013972,2]
[331854154,1720794678443,-500.0,0.00013972,2]
[331854155,1720794678453,-837.4,0.00013972,2]
[331854156,1720794678463,-500.0,0.00013972,2]
[331854157,1720794678472,-1217.56,0.00013972,2]
[331854158,1720794678482,-500.0,0.00013972,2]
[331854159,1720794678491,-819.84,0.00013972,2]
[331854160,1720794678500,-500.0,0.00013972,2]
[331854161,1720794678511,-500.0,0.00013972,2]
[331854162,1720794678520,-1064.23,0.00013972,2]
[331854163,1720794678530,-500.0,0.00013972,2]
[331854164,1720794678539,-4271.54,0.00013972,2]
[331854165,1720794678549,-1838.14,0.00013972,2]
[331854166,1720794678559,-500.0,0.00013972,2]
[331854167,1720794678569,-989.52,0.00013972,2]
[331854168,1720794678579,-500.0,0.00013972,2]
[331854169,1720794678588,-500.0,0.00013972,2]
[331854170,1720794678598,-1038.55,0.00013972,2]
[331854171,1720794678608,-835.73,0.00013972,2]
[331854172,1720794678617,-500.0,0.00013972,2]
[331854173,1720794678627,-720.1,0.00013972,2]
[331854174,1720794678636,-500.0,0.00013972,2]
[331854175,1720794678646,-903.17,0.00013972,2]
[331854176,1720794678655,-948.98,0.00013972,2]
[331854177,1720794678665,-852.64,0.00013972,2]
[331854178,1720794678675,-500.0,0.00013972,2]
[331854179,1720794678684,-500.0,0.00013972,2]
[331854180,1720794678699,-500.0,0.00013972,2]
[331854181,1720794678711,-500.0,0.00013972,2]
[331854182,1720794678721,-540.42,0.00013972,2]
[331854183,1720794678730,-2299.04,0.00013972,2]
[331854184,1720794678740,-1111.09,0.00013972,2]
[331854185,1720794678749,-847.27,0.00013972,2]
[331854186,1720794678759,-259.99526322,0.00013972,2]
[331854187,1720794678768,-500.0,0.00013972,2]
[331854188,1720794678778,-563.5,0.00013972,2]
[331854189,1720794678788,-1080.3,0.00013972,2]
[331854190,1720794678798,-500.0,0.00013972,2]
[331854191,1720794678807,-500.0,0.00013972,2]
[331854192,1720794678817,-1087.76,0.00013972,2]
[331854193,1720794678826,-792.46,0.00013972,2]
[331854194,1720794678835,-777.64,0.00013972,2]
[331854195,1720794678845,-500.0,0.00013972,2]
[331854196,1720794678854,-558.84911621,0.00013972,2]
[331854197,1720794678864,-859.86,0.00013972,2]